2CCN - Level 2 Cost Centre Name,,9CCN - Level 9 Cost Centre Name,9CCC - Level 9 Cost Centre Code,9AN - Level 9 Account Name,9AC - Level 9 Account Code,Date posted,Date of transaction,Merchant Name,Merchant City,Merchant State,Merchant Zip Code,Originating Account Name,Originating Account Number,MCC/SIC Code,MCC Description,Original Amount,Currency,Conversion Rate,Billed Amount,Debit Credit,Reference Number,Statement Cycle,Account Name
Gloucester City Council,23UE,Museum of Gloucester,MU002,Catering Provisions,3103,05/03/2018,02/03/2018,ASDA SUPERSTORE,GLOUCESTER,GBR,GL1 1DS,REDACTED,556*********2362,5411,"GROCERY STORES, SUPERMARKETS",3.85,Pound Sterling (826),1.000000000,3.85,Debit,45377758062030198731627,02/04/2018,GLOUCESTER CC
Gloucester City Council,23UE,Gloucester Life Museum,MU005,Catering Provisions,3103,05/03/2018,04/03/2018,ASDA SUPERSTORE,GLOUCESTER,GBR,GL1 1DS,REDACTED,556*********2362,5411,"GROCERY STORES, SUPERMARKETS",1.48,Pound Sterling (826),1.000000000,1.48,Debit,75377758064030876005992,02/04/2018,GLOUCESTER CC
Gloucester City Council,23UE,Museum of Gloucester,MU002,General Supplies/Materials,3025,08/03/2018,07/03/2018,POUNDWORLD RETAIL,GLOUCESTER,,GL1 1PA,REDACTED,556*********2362,5310,DISCOUNT STORES,5.39,Pound Sterling (826),1.000000000,5.39,Debit,85481478067024256797041,02/04/2018,GLOUCESTER CC
Gloucester City Council,23UE,Museum of Gloucester,MU002,General Supplies/Materials,3025,08/03/2018,07/03/2018,THE WORKS,GLOUCESTER,,GL1 2NG,REDACTED,556*********2362,5310,DISCOUNT STORES,6,Pound Sterling (826),1.000000000,6,Debit,85481478067024340085361,02/04/2018,GLOUCESTER CC
Gloucester City Council,23UE,Museum of Gloucester,MU002,Catering Provisions,3103,09/03/2018,08/03/2018,ASDA SUPERSTORE,GLOUCESTER,GBR,GL1 1DS,REDACTED,556*********2362,5411,"GROCERY STORES, SUPERMARKETS",16.02,Pound Sterling (826),1.000000000,16.02,Debit,65377758068070333890633,02/04/2018,GLOUCESTER CC
Gloucester City Council,23UE,Museum of Gloucester,MU002,Catering Provisions,3103,12/03/2018,10/03/2018,ASDA SUPERSTORE,GLOUCESTER,GBR,GL1 1DS,REDACTED,556*********2362,5411,"GROCERY STORES, SUPERMARKETS",30.33,Pound Sterling (826),1.000000000,30.33,Debit,15377758070080695913437,02/04/2018,GLOUCESTER CC
Gloucester City Council,23UE,Gloucester Life Museum,MU005,General Supplies/Materials,3025,13/03/2018,12/03/2018,Amazon UK Marketplace,800-279-6620,LUX,L2338,REDACTED,556*********2362,5942,BOOK STORES,36.99,Pound Sterling (826),1.000000000,36.99,Debit,55204728071200831216704,02/04/2018,GLOUCESTER CC
Gloucester City Council,23UE,Museum of Gloucester,MU002,General Supplies/Materials,3025,13/03/2018,09/03/2018,TOOLSTATION LTD,CC MOTO,GBR,TA6 4RN,REDACTED,556*********2362,5251,HARDWARE STORES,10.34,Pound Sterling (826),1.000000000,10.34,Debit,35425158072090189409124,02/04/2018,GLOUCESTER CC
Gloucester City Council,23UE,Museum of Gloucester,MU002,General Supplies/Materials,3025,15/03/2018,14/03/2018,THE WORKS,GLOUCESTER,,GL1 2NG,REDACTED,556*********2362,5310,DISCOUNT STORES,6.5,Pound Sterling (826),1.000000000,6.5,Debit,85481478074025998764802,02/04/2018,GLOUCESTER CC
Gloucester City Council,23UE,Museum of Gloucester,MU002,General Supplies/Materials,3025,22/03/2018,21/03/2018,B & Q 1179,GLOUCESTER,,GL12SG,REDACTED,556*********2362,5211,LUMBER AND BUILDING MATERIALS STORES,149.95,Pound Sterling (826),1.000000000,149.95,Debit,85481478081027565725837,02/04/2018,GLOUCESTER CC
Gloucester City Council,23UE,Museum of Gloucester,MU002,Catering Provisions,3103,22/03/2018,21/03/2018,ASDA SUPERSTORE,GLOUCESTER,GBR,GL1 1DS,REDACTED,556*********2362,5411,"GROCERY STORES, SUPERMARKETS",22.81,Pound Sterling (826),1.000000000,22.81,Debit,45377758081060200135811,02/04/2018,GLOUCESTER CC
Gloucester City Council,23UE,Museum of Gloucester,MU002,General Supplies/Materials,3025,23/03/2018,22/03/2018,WH SMITH,GLOUCESTER,GBR,GL1 1NZ,REDACTED,556*********2362,5994,NEWS DEALERS AND NEWSSTANDS,6.98,Pound Sterling (826),1.000000000,6.98,Debit,25377758082070132105320,02/04/2018,GLOUCESTER CC
Gloucester City Council,23UE,Gloucester Life Museum,MU005,Catering Provisions,3103,26/03/2018,23/03/2018,ASDA SUPERSTORE,GLOUCESTER,GBR,GL1 1DS,REDACTED,556*********2362,5411,"GROCERY STORES, SUPERMARKETS",2.96,Pound Sterling (826),1.000000000,2.96,Debit,45377758083080220757509,02/04/2018,GLOUCESTER CC
Gloucester City Council,23UE,Museum of Gloucester,MU002,General Supplies/Materials,3025,26/03/2018,23/03/2018,WH SMITH,GLOUCESTER,GBR,GL1 1NZ,REDACTED,556*********2362,5994,NEWS DEALERS AND NEWSSTANDS,10.98,Pound Sterling (826),1.000000000,10.98,Debit,25377758083080139574757,02/04/2018,GLOUCESTER CC
Gloucester City Council,23UE,Museum of Gloucester,MU002,General Supplies/Materials,3025,29/03/2018,28/03/2018,TIMPSON LTD,GLOUCESTER,,GL11XH,REDACTED,556*********2362,7251,"SHOE REPAIR SHOPS, SHOE SHINE PARLORS & HAT CLEANING SHOPS",12,Pound Sterling (826),1.000000000,12,Debit,85481478087029191882861,02/04/2018,GLOUCESTER CC
Gloucester City Council,23UE,Gloucester Life Museum,MU005,Catering Provisions,3103,30/03/2018,29/03/2018,ASDA SUPERSTORE,GLOUCESTER,GBR,GL1 1DS,REDACTED,556*********2362,5411,"GROCERY STORES, SUPERMARKETS",8.05,Pound Sterling (826),1.000000000,8.05,Debit,45377758089020212068816,02/04/2018,GLOUCESTER CC
Gloucester City Council,23UE,Countryside Unit,EP003,General Supplies/Materials,3025,06/03/2018,05/03/2018,MACHINE MART 51,GLOUCESTER,,GL1 4HY,REDACTED,556*********6734,5722,HOUSEHOLD APPLIANCE STORES,7.19,Pound Sterling (826),1.000000000,7.19,Debit,55504438064110251730153,02/04/2018,GLOUCESTER CC
Gloucester City Council,23UE,Countryside Unit,EP003,Vehicle Repairs and Maintenance,2103,08/03/2018,07/03/2018,PAYPAL *DIYSPAREPAR,35314369001,GBR,SP79PT,REDACTED,556*********6734,5169,CHEMICALS AND ALLIED PRODUCTS NOT ELSEWH,15.55,Pound Sterling (826),1.000000000,15.55,Debit,85130088066809524585779,02/04/2018,GLOUCESTER CC
Gloucester City Council,23UE,Countryside Unit,EP003,Vehicle Repairs and Maintenance,2103,19/03/2018,18/03/2018,COUNTRYWIDEFARMERS PLC,GLOUCESTER,,GL1 2RR,REDACTED,556*********6734,0763,AGRICULTURAL COOPERATIVES,15.99,Pound Sterling (826),1.000000000,15.99,Debit,55504438077071205418177,02/04/2018,GLOUCESTER CC
Gloucester City Council,23UE,Countryside Unit,EP003,General Supplies/Materials,3025,19/03/2018,18/03/2018,COUNTRYWIDEFARMERS PLC,GLOUCESTER,,GL1 2RR,REDACTED,556*********6734,0763,AGRICULTURAL COOPERATIVES,77.34,Pound Sterling (826),1.000000000,77.34,Debit,55504438077071205418177,02/04/2018,GLOUCESTER CC
Gloucester City Council,23UE,Guildhall Bar & Caf�,GH005,Equipment and Furniture,3001,06/03/2018,05/03/2018,Amazon UK Marketplace,800-279-6620,LUX,L2338,REDACTED,556*********1155,5942,BOOK STORES,30.06,Pound Sterling (826),1.000000000,30.06,Debit,55204728064200539101405,02/04/2018,GLOUCESTER CC
Gloucester City Council,23UE,Guildhall Bar & Caf�,GH005,Equipment and Furniture,3001,06/03/2018,05/03/2018,Amazon UK Marketplace,800-279-6620,LUX,L2338,REDACTED,556*********1155,5942,BOOK STORES,21.67,Pound Sterling (826),1.000000000,21.67,Debit,55204728064200549258161,02/04/2018,GLOUCESTER CC
Gloucester City Council,23UE,Guildhall Bar & Caf�,GH005,Equipment and Furniture,3001,06/03/2018,05/03/2018,Amazon UK Marketplace,800-279-6620,LUX,L2338,REDACTED,556*********1155,5942,BOOK STORES,115.77,Pound Sterling (826),1.000000000,115.77,Debit,55204728064200594116090,02/04/2018,GLOUCESTER CC
Gloucester City Council,23UE,Guildhall Bar & Caf�,GH005,Equipment and Furniture,3001,06/03/2018,06/03/2018,Amazon UK Marketplace,800-279-6620,LUX,L2338,REDACTED,556*********1155,5942,BOOK STORES,19.14,Pound Sterling (826),1.000000000,19.14,Debit,55204728065200670999509,02/04/2018,GLOUCESTER CC
Gloucester City Council,23UE,Guildhall Bar & Caf�,GH005,Equipment and Furniture,3001,07/03/2018,06/03/2018,Amazon UK Marketplace,800-279-6620,LUX,L2338,REDACTED,556*********1155,5942,BOOK STORES,7.89,Pound Sterling (826),1.000000000,7.89,Debit,55204728065200687457764,02/04/2018,GLOUCESTER CC
Gloucester City Council,23UE,Guildhall Bar & Caf�,GH005,Equipment and Furniture,3001,07/03/2018,06/03/2018,Amazon UK Marketplace,800-279-6620,LUX,L2338,REDACTED,556*********1155,5942,BOOK STORES,9.99,Pound Sterling (826),1.000000000,9.99,Debit,55204728065200706938059,02/04/2018,GLOUCESTER CC
Gloucester City Council,23UE,Guildhall Bar & Caf�,GH005,Equipment and Furniture,3001,07/03/2018,06/03/2018,Amazon UK Marketplace,800-279-6620,LUX,L2338,REDACTED,556*********1155,5942,BOOK STORES,9.89,Pound Sterling (826),1.000000000,9.89,Debit,55204728065200741552717,02/04/2018,GLOUCESTER CC
Gloucester City Council,23UE,Guildhall Bar & Caf�,GH005,Equipment and Furniture,3001,07/03/2018,06/03/2018,Amazon UK Marketplace,800-279-6620,LUX,L2338,REDACTED,556*********1155,5942,BOOK STORES,6.48,Pound Sterling (826),1.000000000,6.48,Debit,55204728065200755097054,02/04/2018,GLOUCESTER CC
Gloucester City Council,23UE,Guildhall Bar & Caf�,GH005,Equipment and Furniture,3001,08/03/2018,08/03/2018,Amazon UK Marketplace,800-279-6620,LUX,L2338,REDACTED,556*********1155,5942,BOOK STORES,8.99,Pound Sterling (826),1.000000000,8.99,Debit,55204728067200021029905,02/04/2018,GLOUCESTER CC
Gloucester City Council,23UE,Guildhall Bar & Caf�,GH005,Equipment and Furniture,3001,15/03/2018,14/03/2018,ICELAND,GLOUCESTER,GBR,GL1 1SA,REDACTED,556*********1155,5411,"GROCERY STORES, SUPERMARKETS",3.96,Pound Sterling (826),1.000000000,3.96,Debit,35377758074010177604380,02/04/2018,GLOUCESTER CC
Gloucester City Council,23UE,Guildhall Bar & Caf�,GH005,Catering Provisions,3103,16/03/2018,15/03/2018,TESCO STORES 5363,GLOUCESTER,GBR,GL3 4AA,REDACTED,556*********1155,5411,"GROCERY STORES, SUPERMARKETS",100,Pound Sterling (826),1.000000000,100,Debit,65377758075020363840298,02/04/2018,GLOUCESTER CC
Gloucester City Council,23UE,Guildhall Bar & Caf�,GH005,Catering Provisions,3103,16/03/2018,15/03/2018,TESCO STORES 5363,GLOUCESTER,GBR,GL3 4AA,REDACTED,556*********1155,5411,"GROCERY STORES, SUPERMARKETS",-100,Pound Sterling (826),1.000000000,-100,Credit,65377758075020363840314,02/04/2018,GLOUCESTER CC
Gloucester City Council,23UE,Guildhall Bar & Caf�,GH005,Catering Provisions,3103,19/03/2018,16/03/2018,ICELAND,GLOUCESTER,GBR,GL1 1SA,REDACTED,556*********1155,5411,"GROCERY STORES, SUPERMARKETS",1.17,Pound Sterling (826),1.000000000,1.17,Debit,25377758076030089752415,02/04/2018,GLOUCESTER CC
Gloucester City Council,23UE,Guildhall Bar & Caf�,GH005,Catering Provisions,3103,19/03/2018,16/03/2018,TESCO STORE 2581,GLOUCESTER,GBR,GL1 2SR,REDACTED,556*********1155,5411,"GROCERY STORES, SUPERMARKETS",81.37,Pound Sterling (826),1.000000000,81.37,Debit,45377758076030321666975,02/04/2018,GLOUCESTER CC
Gloucester City Council,23UE,Guildhall Bar & Caf�,GH005,Catering Provisions,3103,19/03/2018,16/03/2018,TESCO STORES 2581,GLOUCESTER,GBR,GL1 2SG,REDACTED,556*********1155,5411,"GROCERY STORES, SUPERMARKETS",17.5,Pound Sterling (826),1.000000000,17.5,Debit,45377758076030321631771,02/04/2018,GLOUCESTER CC
Gloucester City Council,23UE,Museum of Gloucester,MU002,General Supplies/Materials,3025,19/03/2018,16/03/2018,ARGOS LTD,GLOUCESTER,,GL12SR,REDACTED,556*********1155,5310,DISCOUNT STORES,57.99,Pound Sterling (826),1.000000000,57.99,Debit,85481478076026400713476,02/04/2018,GLOUCESTER CC
Gloucester City Council,23UE,Guildhall Bar & Caf�,GH005,Catering Provisions,3103,27/03/2018,26/03/2018,ICELAND,GLOUCESTER,GBR,GL1 1SA,REDACTED,556*********1155,5411,"GROCERY STORES, SUPERMARKETS",4.44,Pound Sterling (826),1.000000000,4.44,Debit,75377758086090351695224,02/04/2018,GLOUCESTER CC
Gloucester City Council,23UE,Guildhall Bar & Caf�,GH005,Equipment and Furniture,3001,28/03/2018,27/03/2018,Amazon EU,AMAZON.CO.UK,LUX,L2338,REDACTED,556*********1155,5969,ALL OTHER DIRECT MARKETERS,24.5,Pound Sterling (826),1.000000000,24.5,Debit,55204728086200659986738,02/04/2018,GLOUCESTER CC
Gloucester City Council,23UE,Blackfriars Weddings,GH011,Catering Provisions,3103,29/03/2018,28/03/2018,ALDI 56 776,TEWKESBURY,,GL205SY,REDACTED,556*********1155,5411,"GROCERY STORES, SUPERMARKETS",29.24,Pound Sterling (826),1.000000000,29.24,Debit,85481478088029343328945,02/04/2018,GLOUCESTER CC
Gloucester City Council,23UE,Guildhall Bar & Caf�,GH005,Catering Provisions,3103,30/03/2018,29/03/2018,POUNDWORLD RETAIL,GLOUCESTER,,GL1 1PA,REDACTED,556*********1155,5310,DISCOUNT STORES,4,Pound Sterling (826),1.000000000,4,Debit,85481478089029521776690,02/04/2018,GLOUCESTER CC
Gloucester City Council,23UE,Guildhall Bar & Caf�,GH005,Catering Provisions,3103,30/03/2018,29/03/2018,TESCO STORES 5363,GLOUCESTER,GBR,GL3 4AA,REDACTED,556*********1155,5411,"GROCERY STORES, SUPERMARKETS",40.86,Pound Sterling (826),1.000000000,40.86,Debit,65377758089020426969898,02/04/2018,GLOUCESTER CC
Gloucester City Council,23UE,Guildhall Bar & Caf�,GH005,Catering Provisions,3103,02/04/2018,31/03/2018,SAINSBURYS SACAT 0771,GLOUCESTER,GBR,GL1 2AG,REDACTED,556*********1155,5411,"GROCERY STORES, SUPERMARKETS",13.8,Pound Sterling (826),1.000000000,13.8,Debit,75425158091021044229608,02/04/2018,GLOUCESTER CC
Gloucester City Council,23UE,Museum of Gloucester,MU002,Equipment and Furniture,3001,23/03/2018,22/03/2018,WWW.UKPOS.COM,INTERNET,GBR,SK6 2TD,REDACTED,556*********8997,5943,"STATIONERY, OFFICE AND SCHOOL SUPPLY STO",128.33,Pound Sterling (826),1.000000000,128.33,Debit,25425158082070087269829,02/04/2018,GLOUCESTER CC
Gloucester City Council,23UE,Docks Complex - Services,AM006,Building Repairs and Maintenance,1001,09/03/2018,08/03/2018,B & Q 1179,GLOUCESTER,,GL12SG,REDACTED,556*********4301,5211,LUMBER AND BUILDING MATERIALS STORES,22.95,Pound Sterling (826),1.000000000,22.95,Debit,85481478068024503192730,02/04/2018,GLOUCESTER CC
Gloucester City Council,23UE,Docks Complex - Services,AM006,Hospitality & Refreshments,3104,09/03/2018,08/03/2018,TESCO STORES 2581,GLOUCESTER,GBR,GL1 2SG,REDACTED,556*********4301,5411,"GROCERY STORES, SUPERMARKETS",83.09,Pound Sterling (826),1.000000000,83.09,Debit,45377758068070274343859,02/04/2018,GLOUCESTER CC
Gloucester City Council,23UE,Members Support,DS002,Members Courses & Conferences,3607,08/03/2018,07/03/2018,HOLIDAY INN EXPRES,HULL,,HU28LN,REDACTED,556*********3029,7011,"LODGING, HOTELS, MOTELS, RESORTS",80,Pound Sterling (826),1.000000000,80,Debit,85481478067024433501647,02/04/2018,GLOUCESTER CC
Gloucester City Council,23UE,Members Support,DS002,Members Courses & Conferences,3607,08/03/2018,07/03/2018,HOLIDAY INN EXPRES,HULL,,HU28LN,REDACTED,556*********3029,7011,"LODGING, HOTELS, MOTELS, RESORTS",80,Pound Sterling (826),1.000000000,80,Debit,85481478067024433501654,02/04/2018,GLOUCESTER CC
Gloucester City Council,23UE,Members Support,DS002,Members Courses & Conferences,3607,08/03/2018,07/03/2018,HOLIDAY INN EXPRES,HULL,,HU28LN,REDACTED,556*********3029,7011,"LODGING, HOTELS, MOTELS, RESORTS",-80,Pound Sterling (826),1.000000000,-80,Credit,85481478067024433501639,02/04/2018,GLOUCESTER CC
Gloucester City Council,23UE,Members Support,DS002,Public Transport - Staff,2402,09/03/2018,08/03/2018,Trainline,London,GBR,1445,REDACTED,556*********3029,4112,PASSENGER RAILWAYS,22.05,Pound Sterling (826),1.000000000,22.05,Debit,85130088067809587581714,02/04/2018,GLOUCESTER CC
Gloucester City Council,23UE,Housing Services,HS001,B&B Payments,1303,05/03/2018,02/03/2018,TRAVELODGE GB0000,THAME,,OX9 3AT,REDACTED,556*********6959,3615,TRAVELODGE,219.5,Pound Sterling (826),1.000000000,219.5,Debit,55504438061298176352352,02/04/2018,GLOUCESTER CC
Gloucester City Council,23UE,Housing Services,HS001,B&B Payments,1303,05/03/2018,02/03/2018,TRAVELODGE GB0821,CHELTENHAM,,GL51 6TA,REDACTED,556*********6959,3615,TRAVELODGE,149.5,Pound Sterling (826),1.000000000,149.5,Debit,55504438063110241171709,02/04/2018,GLOUCESTER CC
Gloucester City Council,23UE,Housing Services,HS001,B&B Payments,1303,06/03/2018,05/03/2018,TRAVELODGE GB0000,THAME,,OX9 3AT,REDACTED,556*********6959,3615,TRAVELODGE,71,Pound Sterling (826),1.000000000,71,Debit,55504438064298190318840,02/04/2018,GLOUCESTER CC
Gloucester City Council,23UE,Housing Services,HS001,B&B Payments,1303,06/03/2018,05/03/2018,TRAVELODGE GB0000,THAME,,OX9 3AT,REDACTED,556*********6959,3615,TRAVELODGE,413,Pound Sterling (826),1.000000000,413,Debit,55504438064298190318774,02/04/2018,GLOUCESTER CC
Gloucester City Council,23UE,Housing Services,HS001,B&B Payments,1303,06/03/2018,05/03/2018,TRAVELODGE GB0000,THAME,,OX9 3AT,REDACTED,556*********6959,3615,TRAVELODGE,727,Pound Sterling (826),1.000000000,727,Debit,55504438064298190272435,02/04/2018,GLOUCESTER CC
Gloucester City Council,23UE,Housing Services,HS001,B&B Payments,1303,06/03/2018,05/03/2018,TRAVELODGE GB0000,THAME,,OX9 3AT,REDACTED,556*********6959,3615,TRAVELODGE,467,Pound Sterling (826),1.000000000,467,Debit,55504438064298190308098,02/04/2018,GLOUCESTER CC
Gloucester City Council,23UE,Housing Services,HS001,B&B Payments,1303,06/03/2018,05/03/2018,TRAVELODGE GB0000,THAME,,OX9 3AT,REDACTED,556*********6959,3615,TRAVELODGE,358,Pound Sterling (826),1.000000000,358,Debit,55504438064298190286609,02/04/2018,GLOUCESTER CC
Gloucester City Council,23UE,Housing Services,HS001,Professional Advice/Consultants fees,3952,07/03/2018,06/03/2018,SHELTER,INTERNET,,EC1V9HU,REDACTED,556*********6959,8398,CHARITABLE AND SOCIAL SERVICE ORGANIZATIONS,133,Pound Sterling (826),1.000000000,133,Debit,85481478066024018611002,02/04/2018,GLOUCESTER CC
Gloucester City Council,23UE,Housing Services,HS001,B&B Payments,1303,07/03/2018,06/03/2018,TRAVELODGE GB0000,THAME,,OX9 3AT,REDACTED,556*********6959,3615,TRAVELODGE,100,Pound Sterling (826),1.000000000,100,Debit,55504438065298197320178,02/04/2018,GLOUCESTER CC
Gloucester City Council,23UE,Housing Services,HS001,B&B Payments,1303,07/03/2018,06/03/2018,TRAVELODGE GB0000,THAME,,OX9 3AT,REDACTED,556*********6959,3615,TRAVELODGE,300,Pound Sterling (826),1.000000000,300,Debit,55504438065298197355638,02/04/2018,GLOUCESTER CC
Gloucester City Council,23UE,Housing Services,HS001,B&B Payments,1303,07/03/2018,06/03/2018,TRAVELODGE GB0000,THAME,,OX9 3AT,REDACTED,556*********6959,3615,TRAVELODGE,177,Pound Sterling (826),1.000000000,177,Debit,55504438065298197336398,02/04/2018,GLOUCESTER CC
Gloucester City Council,23UE,Housing Services,HS001,B&B Payments,1303,07/03/2018,06/03/2018,TRAVELODGE GB0000,THAME,,OX9 3AT,REDACTED,556*********6959,3615,TRAVELODGE,-241,Pound Sterling (826),1.000000000,-241,Credit,55504438065295371309860,02/04/2018,GLOUCESTER CC
Gloucester City Council,23UE,Housing Services,HS001,B&B Payments,1303,08/03/2018,07/03/2018,TRAVELODGE GB0000,THAME,,OX9 3AT,REDACTED,556*********6959,3615,TRAVELODGE,700,Pound Sterling (826),1.000000000,700,Debit,55504438066298103985246,02/04/2018,GLOUCESTER CC
Gloucester City Council,23UE,Housing Services,HS001,B&B Payments,1303,08/03/2018,07/03/2018,TRAVELODGE GB0000,THAME,,OX9 3AT,REDACTED,556*********6959,3615,TRAVELODGE,350,Pound Sterling (826),1.000000000,350,Debit,55504438066298103992176,02/04/2018,GLOUCESTER CC
Gloucester City Council,23UE,Housing Services,HS001,B&B Payments,1303,08/03/2018,07/03/2018,TRAVELODGE GB0000,THAME,,OX9 3AT,REDACTED,556*********6959,3615,TRAVELODGE,113,Pound Sterling (826),1.000000000,113,Debit,55504438066298104013667,02/04/2018,GLOUCESTER CC
Gloucester City Council,23UE,Housing Services,HS001,B&B Payments,1303,08/03/2018,07/03/2018,TRAVELODGE GB0000,THAME,,OX9 3AT,REDACTED,556*********6959,3615,TRAVELODGE,113,Pound Sterling (826),1.000000000,113,Debit,55504438066298104029424,02/04/2018,GLOUCESTER CC
Gloucester City Council,23UE,Housing Services,HS001,B&B Payments,1303,09/03/2018,08/03/2018,TRAVELODGE GB0000,THAME,,OX9 3AT,REDACTED,556*********6959,3615,TRAVELODGE,250,Pound Sterling (826),1.000000000,250,Debit,55504438067298110817407,02/04/2018,GLOUCESTER CC
Gloucester City Council,23UE,Housing Services,HS001,B&B Payments,1303,09/03/2018,08/03/2018,TRAVELODGE GB0000,THAME,,OX9 3AT,REDACTED,556*********6959,3615,TRAVELODGE,250,Pound Sterling (826),1.000000000,250,Debit,55504438067298110740823,02/04/2018,GLOUCESTER CC
Gloucester City Council,23UE,Housing Services,HS001,B&B Payments,1303,09/03/2018,08/03/2018,TRAVELODGE GB0000,THAME,,OX9 3AT,REDACTED,556*********6959,3615,TRAVELODGE,67,Pound Sterling (826),1.000000000,67,Debit,55504438067298110722839,02/04/2018,GLOUCESTER CC
Gloucester City Council,23UE,Housing Services,HS001,B&B Payments,1303,09/03/2018,08/03/2018,TRAVELODGE GB0000,THAME,,OX9 3AT,REDACTED,556*********6959,3615,TRAVELODGE,352,Pound Sterling (826),1.000000000,352,Debit,55504438067298110713739,02/04/2018,GLOUCESTER CC
Gloucester City Council,23UE,Housing Services,HS001,B&B Payments,1303,12/03/2018,09/03/2018,TRAVELODGE GB0821,CHELTENHAM,,GL51 6TA,REDACTED,556*********6959,3615,TRAVELODGE,299.5,Pound Sterling (826),1.000000000,299.5,Debit,55504438070110282596856,02/04/2018,GLOUCESTER CC
Gloucester City Council,23UE,Housing Services,HS001,Mileage and Travel Allowances,2401,13/03/2018,12/03/2018,FIVE STAR / FIRST ASSO,GLOUCESTER,GBR,GL4 6PH,REDACTED,556*********6959,4121,TAXICABS/LIMOUSINES,24,Pound Sterling (826),1.000000000,24,Debit,25425158072090072305620,02/04/2018,GLOUCESTER CC
Gloucester City Council,23UE,Housing Services,HS001,Public Transport - Staff,2402,13/03/2018,12/03/2018,Trainline,London,GBR,1445,REDACTED,556*********6959,4112,PASSENGER RAILWAYS,5.55,Pound Sterling (826),1.000000000,5.55,Debit,85130088071810731485855,02/04/2018,GLOUCESTER CC
Gloucester City Council,23UE,Housing Services,HS001,B&B Payments,1303,13/03/2018,12/03/2018,TRAVELODGE GB0000,THAME,,OX9 3AT,REDACTED,556*********6959,3615,TRAVELODGE,96,Pound Sterling (826),1.000000000,96,Debit,55504438071298136259661,02/04/2018,GLOUCESTER CC
Gloucester City Council,23UE,Housing Services,HS001,B&B Payments,1303,13/03/2018,12/03/2018,TRAVELODGE GB0000,THAME,,OX9 3AT,REDACTED,556*********6959,3615,TRAVELODGE,192,Pound Sterling (826),1.000000000,192,Debit,55504438071298136147767,02/04/2018,GLOUCESTER CC
Gloucester City Council,23UE,Housing Services,HS001,B&B Payments,1303,13/03/2018,12/03/2018,TRAVELODGE GB0000,THAME,,OX9 3AT,REDACTED,556*********6959,3615,TRAVELODGE,96,Pound Sterling (826),1.000000000,96,Debit,55504438071298136191534,02/04/2018,GLOUCESTER CC
Gloucester City Council,23UE,Housing Services,HS001,B&B Payments,1303,13/03/2018,12/03/2018,TRAVELODGE GB0000,THAME,,OX9 3AT,REDACTED,556*********6959,3615,TRAVELODGE,96,Pound Sterling (826),1.000000000,96,Debit,55504438071298136133759,02/04/2018,GLOUCESTER CC
Gloucester City Council,23UE,Housing Services,HS001,B&B Payments,1303,13/03/2018,12/03/2018,TRAVELODGE GB0000,THAME,,OX9 3AT,REDACTED,556*********6959,3615,TRAVELODGE,96,Pound Sterling (826),1.000000000,96,Debit,55504438071298136143428,02/04/2018,GLOUCESTER CC
Gloucester City Council,23UE,Housing Services,HS001,B&B Payments,1303,14/03/2018,13/03/2018,Amerisuites,GLOUCESTER,,GL2 4NF,REDACTED,556*********6959,3514,AMERISUITES,520,Pound Sterling (826),1.000000000,520,Debit,85481478073025755369390,02/04/2018,GLOUCESTER CC
Gloucester City Council,23UE,Housing Services,HS001,Public Transport - Staff,2402,15/03/2018,14/03/2018,Trainline,London,GBR,1445,REDACTED,556*********6959,4112,PASSENGER RAILWAYS,50.9,Pound Sterling (826),1.000000000,50.9,Debit,85130088073810806322320,02/04/2018,GLOUCESTER CC
Gloucester City Council,23UE,Housing Services,HS001,B&B Payments,1303,19/03/2018,16/03/2018,TRAVELODGE GB0809,GLOUCESTER,,GL1 5SF,REDACTED,556*********6959,3615,TRAVELODGE,676.5,Pound Sterling (826),1.000000000,676.5,Debit,55504438077110214215073,02/04/2018,GLOUCESTER CC
Gloucester City Council,23UE,Housing Services,HS001,B&B Payments,1303,20/03/2018,19/03/2018,TRAVELODGE GB0000,THAME,,OX9 3AT,REDACTED,556*********6959,3615,TRAVELODGE,175,Pound Sterling (826),1.000000000,175,Debit,55504438078298179126770,02/04/2018,GLOUCESTER CC
Gloucester City Council,23UE,Housing Services,HS001,B&B Payments,1303,20/03/2018,19/03/2018,TRAVELODGE GB0000,THAME,,OX9 3AT,REDACTED,556*********6959,3615,TRAVELODGE,275,Pound Sterling (826),1.000000000,275,Debit,55504438078298179191121,02/04/2018,GLOUCESTER CC
Gloucester City Council,23UE,Housing Services,HS001,B&B Payments,1303,20/03/2018,19/03/2018,TRAVELODGE GB0000,THAME,,OX9 3AT,REDACTED,556*********6959,3615,TRAVELODGE,175,Pound Sterling (826),1.000000000,175,Debit,55504438078298179195841,02/04/2018,GLOUCESTER CC
Gloucester City Council,23UE,Housing Services,HS001,B&B Payments,1303,20/03/2018,19/03/2018,TRAVELODGE GB0000,THAME,,OX9 3AT,REDACTED,556*********6959,3615,TRAVELODGE,44,Pound Sterling (826),1.000000000,44,Debit,55504438078298179121391,02/04/2018,GLOUCESTER CC
Gloucester City Council,23UE,Housing Services,HS001,B&B Payments,1303,21/03/2018,20/03/2018,TRAVELODGE GB0000,THAME,,OX9 3AT,REDACTED,556*********6959,3615,TRAVELODGE,258,Pound Sterling (826),1.000000000,258,Debit,55504438079298185503391,02/04/2018,GLOUCESTER CC
Gloucester City Council,23UE,Housing Services,HS001,B&B Payments,1303,21/03/2018,20/03/2018,TRAVELODGE GB0000,THAME,,OX9 3AT,REDACTED,556*********6959,3615,TRAVELODGE,258,Pound Sterling (826),1.000000000,258,Debit,55504438079298185416784,02/04/2018,GLOUCESTER CC
Gloucester City Council,23UE,Housing Services,HS001,B&B Payments,1303,21/03/2018,20/03/2018,Amerisuites,GLOUCESTER,,GL2 4NF,REDACTED,556*********6959,3514,AMERISUITES,285,Pound Sterling (826),1.000000000,285,Debit,85481478080027470940035,02/04/2018,GLOUCESTER CC
Gloucester City Council,23UE,Housing Services,HS001,B&B Payments,1303,22/03/2018,21/03/2018,TRAVELODGE GB0000,THAME,,OX9 3AT,REDACTED,556*********6959,3615,TRAVELODGE,167,Pound Sterling (826),1.000000000,167,Debit,55504438080298191772425,02/04/2018,GLOUCESTER CC
Gloucester City Council,23UE,Housing Services,HS001,B&B Payments,1303,22/03/2018,21/03/2018,TRAVELODGE GB0000,THAME,,OX9 3AT,REDACTED,556*********6959,3615,TRAVELODGE,450,Pound Sterling (826),1.000000000,450,Debit,55504438080298191769660,02/04/2018,GLOUCESTER CC
Gloucester City Council,23UE,Housing Services,HS001,B&B Payments,1303,23/03/2018,22/03/2018,TRAVELODGE GB0000,THAME,,OX9 3AT,REDACTED,556*********6959,3615,TRAVELODGE,200,Pound Sterling (826),1.000000000,200,Debit,55504438081298198231168,02/04/2018,GLOUCESTER CC
Gloucester City Council,23UE,Housing Services,HS001,B&B Payments,1303,23/03/2018,22/03/2018,TRAVELODGE GB0000,THAME,,OX9 3AT,REDACTED,556*********6959,3615,TRAVELODGE,275,Pound Sterling (826),1.000000000,275,Debit,55504438081298198230137,02/04/2018,GLOUCESTER CC
Gloucester City Council,23UE,Housing Services,HS001,B&B Payments,1303,23/03/2018,22/03/2018,TRAVELODGE GB0000,THAME,,OX9 3AT,REDACTED,556*********6959,3615,TRAVELODGE,67,Pound Sterling (826),1.000000000,67,Debit,55504438081298198281353,02/04/2018,GLOUCESTER CC
Gloucester City Council,23UE,Housing Services,HS001,B&B Payments,1303,23/03/2018,22/03/2018,Amerisuites,GLOUCESTER,,GL2 4NF,REDACTED,556*********6959,3514,AMERISUITES,560,Pound Sterling (826),1.000000000,560,Debit,85481478082027956226725,02/04/2018,GLOUCESTER CC
Gloucester City Council,23UE,Housing Services,HS001,B&B Payments,1303,26/03/2018,23/03/2018,TRAVELODGE GB0000,THAME,,OX9 3AT,REDACTED,556*********6959,3615,TRAVELODGE,200,Pound Sterling (826),1.000000000,200,Debit,55504438082298105046773,02/04/2018,GLOUCESTER CC
Gloucester City Council,23UE,Housing Services,HS001,B&B Payments,1303,26/03/2018,23/03/2018,TRAVELODGE GB0000,THAME,,OX9 3AT,REDACTED,556*********6959,3615,TRAVELODGE,403,Pound Sterling (826),1.000000000,403,Debit,55504438082298104972755,02/04/2018,GLOUCESTER CC
Gloucester City Council,23UE,Housing Services,HS001,B&B Payments,1303,26/03/2018,23/03/2018,TRAVELODGE GB0000,THAME,,OX9 3AT,REDACTED,556*********6959,3615,TRAVELODGE,200,Pound Sterling (826),1.000000000,200,Debit,55504438082298104965841,02/04/2018,GLOUCESTER CC
Gloucester City Council,23UE,Housing Services,HS001,B&B Payments,1303,27/03/2018,26/03/2018,TRAVELODGE GB0000,THAME,,OX9 3AT,REDACTED,556*********6959,3615,TRAVELODGE,83,Pound Sterling (826),1.000000000,83,Debit,55504438085298122671410,02/04/2018,GLOUCESTER CC
Gloucester City Council,23UE,Housing Services,HS001,B&B Payments,1303,28/03/2018,27/03/2018,TRAVELODGE GB0000,THAME,,OX9 3AT,REDACTED,556*********6959,3615,TRAVELODGE,478,Pound Sterling (826),1.000000000,478,Debit,55504438086298129236661,02/04/2018,GLOUCESTER CC
Gloucester City Council,23UE,Housing Services,HS001,B&B Payments,1303,28/03/2018,27/03/2018,TRAVELODGE GB0000,THAME,,OX9 3AT,REDACTED,556*********6959,3615,TRAVELODGE,624,Pound Sterling (826),1.000000000,624,Debit,55504438086298129240077,02/04/2018,GLOUCESTER CC
Gloucester City Council,23UE,Housing Services,HS001,B&B Payments,1303,28/03/2018,27/03/2018,TRAVELODGE GB0000,THAME,,OX9 3AT,REDACTED,556*********6959,3615,TRAVELODGE,549,Pound Sterling (826),1.000000000,549,Debit,55504438086298129235895,02/04/2018,GLOUCESTER CC
Gloucester City Council,23UE,Housing Services,HS001,B&B Payments,1303,28/03/2018,27/03/2018,Amerisuites,GLOUCESTER,,GL2 4NF,REDACTED,556*********6959,3514,AMERISUITES,285,Pound Sterling (826),1.000000000,285,Debit,85481478087029045866953,02/04/2018,GLOUCESTER CC
Gloucester City Council,23UE,Housing Services,HS001,B&B Payments,1303,29/03/2018,28/03/2018,TRAVELODGE GB0000,THAME,,OX9 3AT,REDACTED,556*********6959,3615,TRAVELODGE,479,Pound Sterling (826),1.000000000,479,Debit,55504438087298135942939,02/04/2018,GLOUCESTER CC
Gloucester City Council,23UE,Housing Services,HS001,B&B Payments,1303,29/03/2018,28/03/2018,TRAVELODGE GB0000,THAME,,OX9 3AT,REDACTED,556*********6959,3615,TRAVELODGE,88,Pound Sterling (826),1.000000000,88,Debit,55504438087298136027250,02/04/2018,GLOUCESTER CC
Gloucester City Council,23UE,Housing Services,HS001,B&B Payments,1303,30/03/2018,29/03/2018,TRAVELODGE GB0000,THAME,,OX9 3AT,REDACTED,556*********6959,3615,TRAVELODGE,375,Pound Sterling (826),1.000000000,375,Debit,55504438088298142867813,02/04/2018,GLOUCESTER CC
Gloucester City Council,23UE,Housing Services,HS001,B&B Payments,1303,30/03/2018,29/03/2018,TRAVELODGE GB0000,THAME,,OX9 3AT,REDACTED,556*********6959,3615,TRAVELODGE,457,Pound Sterling (826),1.000000000,457,Debit,55504438088298142825779,02/04/2018,GLOUCESTER CC
Gloucester City Council,23UE,Housing Services,HS001,B&B Payments,1303,30/03/2018,29/03/2018,TRAVELODGE GB0000,THAME,,OX9 3AT,REDACTED,556*********6959,3615,TRAVELODGE,376,Pound Sterling (826),1.000000000,376,Debit,55504438088298142855289,02/04/2018,GLOUCESTER CC
Gloucester City Council,23UE,Housing Services,HS001,B&B Payments,1303,30/03/2018,29/03/2018,Amerisuites,GLOUCESTER,,GL2 4NF,REDACTED,556*********6959,3514,AMERISUITES,560,Pound Sterling (826),1.000000000,560,Debit,85481478089029694668609,02/04/2018,GLOUCESTER CC
Gloucester City Council,23UE,Members Support,DS002,Public Transport - Staff,2402,06/03/2018,05/03/2018,Trainline,London,GBR,1445,REDACTED,556*********3822,4112,PASSENGER RAILWAYS,180.2,Pound Sterling (826),1.000000000,180.2,Debit,85130088064809472863378,02/04/2018,GLOUCESTER CC
Gloucester City Council,23UE,Historic Buildings,PL006,Public Transport - Staff,2402,08/03/2018,07/03/2018,Trainline,London,GBR,1445,REDACTED,556*********3822,4112,PASSENGER RAILWAYS,128.6,Pound Sterling (826),1.000000000,128.6,Debit,85130088066809549260309,02/04/2018,GLOUCESTER CC
Gloucester City Council,23UE,Council Streetcare Team,NE002,Public Transport - Staff,2402,15/03/2018,14/03/2018,Trainline,London,GBR,1445,REDACTED,556*********3822,4112,PASSENGER RAILWAYS,19.95,Pound Sterling (826),1.000000000,19.95,Debit,85130088073810809424636,02/04/2018,GLOUCESTER CC
Gloucester City Council,23UE,Docks Complex - Services,AM006,Hospitality & Refreshments,3104,20/03/2018,19/03/2018,MARKS&SPENCER PLC,GLOUCESTER,GBR,GL1 1PH,REDACTED,556*********3822,5411,"GROCERY STORES, SUPERMARKETS",37,Pound Sterling (826),1.000000000,37,Debit,45377758079040241158927,02/04/2018,GLOUCESTER CC
Gloucester City Council,23UE,Docks Complex - Services,AM006,Hospitality & Refreshments,3104,20/03/2018,19/03/2018,TESCO STORES 6819,GLOUCESTER,GBR,GL1 1TP,REDACTED,556*********3822,5411,"GROCERY STORES, SUPERMARKETS",1.58,Pound Sterling (826),1.000000000,1.58,Debit,65377758079040333605981,02/04/2018,GLOUCESTER CC
Gloucester City Council,23UE,Members Support,DS002,Members Travel Expenses,3609,26/03/2018,23/03/2018,Trainline,London,GBR,1445,REDACTED,556*********3822,4112,PASSENGER RAILWAYS,43.5,Pound Sterling (826),1.000000000,43.5,Debit,85130088082811147392252,02/04/2018,GLOUCESTER CC
Gloucester City Council,23UE,Business Support,BI004,Stationery,3201,29/03/2018,28/03/2018,Amazon UK Marketplace,800-279-6620,LUX,L2338,REDACTED,556*********3822,5942,BOOK STORES,11.95,Pound Sterling (826),1.000000000,11.95,Debit,55204728087200819413242,02/04/2018,GLOUCESTER CC
Gloucester City Council,23UE,Gloucester Guildhall,GH001,Equipment and Furniture,3001,05/03/2018,02/03/2018,PAYPAL *CHOICESHOPS,35314369001,GBR,TF33BN,REDACTED,556*********8256,5099,"DURABLE GOODS,NOT ELSEWHERE CLASSIFIED",39.89,Pound Sterling (826),1.000000000,39.89,Debit,85130088061808331834649,02/04/2018,GLOUCESTER CC
Gloucester City Council,23UE,Guildhall Events,GH002,Professional Advice/Consultants fees,3952,06/03/2018,01/03/2018,MIPERMIT,INTERNET,GBR,SN15 5FD,REDACTED,556*********8256,7523,AUTOMOBILE PARKING LOTS AND GARAGES,10,Pound Sterling (826),1.000000000,10,Debit,25425158065040095259774,02/04/2018,GLOUCESTER CC
Gloucester City Council,23UE,Gloucester Guildhall,GH001,Equipment and Furniture,3001,07/03/2018,07/03/2018,Amazon EU,AMAZON.CO.UK,LUX,L2338,REDACTED,556*********8256,5969,ALL OTHER DIRECT MARKETERS,35.63,Pound Sterling (826),1.000000000,35.63,Debit,55204728066200829753830,02/04/2018,GLOUCESTER CC
Gloucester City Council,23UE,Guildhall Cinema,GH003,Professional Advice/Consultants fees,3952,07/03/2018,06/03/2018,PARCEL2GO.COM LTD,BOLTON,,BL3 6BU,REDACTED,556*********8256,4215,"COURIER SERVICES-AIR OR GROUND,FREIGHT FORWARDERS",54.74,Pound Sterling (826),1.000000000,54.74,Debit,85481478066024122387085,02/04/2018,GLOUCESTER CC
Gloucester City Council,23UE,Guildhall Events,GH002,Advertising & Publicity,3404,08/03/2018,06/03/2018,MIPERMIT,INTERNET,GBR,SN15 5FD,REDACTED,556*********8256,7523,AUTOMOBILE PARKING LOTS AND GARAGES,20,Pound Sterling (826),1.000000000,20,Debit,25425158067060091369060,02/04/2018,GLOUCESTER CC
Gloucester City Council,23UE,Gloucester Guildhall,GH001,Equipment and Furniture,3001,09/03/2018,08/03/2018,Amazon EU,AMAZON.CO.UK,LUX,L2338,REDACTED,556*********8256,5969,ALL OTHER DIRECT MARKETERS,27.96,Pound Sterling (826),1.000000000,27.96,Debit,55204728067200112871710,02/04/2018,GLOUCESTER CC
Gloucester City Council,23UE,Gloucester Guildhall,GH001,Equipment and Furniture,3001,09/03/2018,08/03/2018,WH SMITH,GLOUCESTER,GBR,GL1 1NZ,REDACTED,556*********8256,5994,NEWS DEALERS AND NEWSSTANDS,36.99,Pound Sterling (826),1.000000000,36.99,Debit,25377758068070137669229,02/04/2018,GLOUCESTER CC
Gloucester City Council,23UE,Blackfriars ,GH010,Equipment and Furniture,3001,12/03/2018,09/03/2018,BLOOMING ARTIFICIAL,London,GBR,EC3V 0DR,REDACTED,556*********8256,5992,FLORISTS,-431.95,Pound Sterling (826),1.000000000,-431.95,Credit,75282478069131109697979,02/04/2018,GLOUCESTER CC
Gloucester City Council,23UE,Blackfriars ,GH010,Equipment and Furniture,3001,13/03/2018,12/03/2018,WWW.GARDENTRADINGWHOLE,INTERNET,GBR,OX18 3EZ,REDACTED,556*********8256,5261,"NURSERIES, LAWN AND GARDEN SUPPLY STORES",170,Pound Sterling (826),1.000000000,170,Debit,35425158072090194696772,02/04/2018,GLOUCESTER CC
Gloucester City Council,23UE,Blackfriars ,GH010,Equipment and Furniture,3001,15/03/2018,14/03/2018,WWW.THESOLARCENTRE.CO.,INTERNET,GBR,AL1 5HN,REDACTED,556*********8256,5719,MISCELLANEOUS HOUSE FURNISHING SPECIALITY STORES,89.95,Pound Sterling (826),1.000000000,89.95,Debit,25425158074010089594741,02/04/2018,GLOUCESTER CC
Gloucester City Council,23UE,Museum of Gloucester,MU002,Advertising & Publicity,3404,19/03/2018,16/03/2018,WWW.INSTANTPRINT.C,01709 382202,,S63 5DR,REDACTED,556*********8256,7338,QUICK-COPY AND REPRODUCTION SERVICES,51.99,Pound Sterling (826),1.000000000,51.99,Debit,85481478076026426050820,02/04/2018,GLOUCESTER CC
Gloucester City Council,23UE,Blackfriars ,GH010,Equipment and Furniture,3001,19/03/2018,18/03/2018,Amazon UK Marketplace,800-279-6620,LUX,L2338,REDACTED,556*********8256,5942,BOOK STORES,39.41,Pound Sterling (826),1.000000000,39.41,Debit,55204728077200042752285,02/04/2018,GLOUCESTER CC
Gloucester City Council,23UE,Guildhall Events,GH002,Advertising & Publicity,3404,20/03/2018,19/03/2018,WWW.INSTANTPRINT.C,01709 382202,,S63 5DR,REDACTED,556*********8256,7338,QUICK-COPY AND REPRODUCTION SERVICES,29.99,Pound Sterling (826),1.000000000,29.99,Debit,85481478079027149219988,02/04/2018,GLOUCESTER CC
Gloucester City Council,23UE,Guildhall Bar & Caf�,GH005,Catering Provisions,3103,22/03/2018,21/03/2018,SAINSBURYS 0608,BARNWOOD,GBR,GL4 3RT,REDACTED,556*********8256,5411,"GROCERY STORES, SUPERMARKETS",8.3,Pound Sterling (826),1.000000000,8.3,Debit,25425158081060089767384,02/04/2018,GLOUCESTER CC
Gloucester City Council,23UE,Guildhall Bar & Caf�,GH005,Catering Provisions,3103,22/03/2018,21/03/2018,BOOKER LIMITED GLOUCES,GLOUCESTER,GBR,GL4 3RT,REDACTED,556*********8256,5811,CATERERS,35.82,Pound Sterling (826),1.000000000,35.82,Debit,55184228080890812668990,02/04/2018,GLOUCESTER CC
Gloucester City Council,23UE,Guildhall Bar & Caf�,GH005,Catering Provisions,3103,22/03/2018,21/03/2018,TESCO STORES (6819),GLOUCESTER,GBR,GL1 1TP,REDACTED,556*********8256,5411,"GROCERY STORES, SUPERMARKETS",5.56,Pound Sterling (826),1.000000000,5.56,Debit,65377758081060338955393,02/04/2018,GLOUCESTER CC
Gloucester City Council,23UE,Gloucester Guildhall,GH001,Vehicle Repairs and Maintenance,2103,23/03/2018,22/03/2018,THE AA *,03433164444,GBR,RG21 4EA,REDACTED,556*********8256,8675,AUTOMOBILE ASSOCIATIONS,117,Pound Sterling (826),1.000000000,117,Debit,55204728081200800452486,02/04/2018,GLOUCESTER CC
Gloucester City Council,23UE,Guildhall Events,GH002,Advertising & Publicity,3404,23/03/2018,22/03/2018,WWW.INSTANTPRINT.C,01709 382202,,S63 5DR,REDACTED,556*********8256,7338,QUICK-COPY AND REPRODUCTION SERVICES,39.99,Pound Sterling (826),1.000000000,39.99,Debit,85481478082027823152351,02/04/2018,GLOUCESTER CC
Gloucester City Council,23UE,Guildhall Bar & Caf�,GH005,Catering Provisions,3103,23/03/2018,22/03/2018,ASDA SUPERSTORE,GLOUCESTER,GBR,GL1 1DS,REDACTED,556*********8256,5411,"GROCERY STORES, SUPERMARKETS",14.92,Pound Sterling (826),1.000000000,14.92,Debit,45377758082070203764904,02/04/2018,GLOUCESTER CC
Gloucester City Council,23UE,Guildhall Events,GH002,Professional Advice/Consultants fees,3952,26/03/2018,23/03/2018,MIPERMIT LTD,INTERNET,GBR,SN15 5FD,REDACTED,556*********8256,7523,AUTOMOBILE PARKING LOTS AND GARAGES,10,Pound Sterling (826),1.000000000,10,Debit,25425158083080093148825,02/04/2018,GLOUCESTER CC
Gloucester City Council,23UE,Guildhall Events,GH002,Professional Advice/Consultants fees,3952,26/03/2018,23/03/2018,MIPERMIT LTD,INTERNET,GBR,SN15 5FD,REDACTED,556*********8256,7523,AUTOMOBILE PARKING LOTS AND GARAGES,10,Pound Sterling (826),1.000000000,10,Debit,25425158083080093148858,02/04/2018,GLOUCESTER CC
Gloucester City Council,23UE,Gloucester Guildhall,GH001,Public Transport - Staff,2402,28/03/2018,27/03/2018,Trainline,London,GBR,1445,REDACTED,556*********8256,4112,PASSENGER RAILWAYS,-31.3,Pound Sterling (826),1.000000000,-31.3,Credit,85130088086812287170439,02/04/2018,GLOUCESTER CC
Gloucester City Council,23UE,Guildhall Events,GH002,Advertising & Publicity,3404,30/03/2018,29/03/2018,WWW.INSTANTPRINT.C,01709 382202,,S63 5DR,REDACTED,556*********8256,7338,QUICK-COPY AND REPRODUCTION SERVICES,51.99,Pound Sterling (826),1.000000000,51.99,Debit,85481478089029478065592,02/04/2018,GLOUCESTER CC
Gloucester City Council,23UE,Guildhall Events,GH002,Advertising & Publicity,3404,02/04/2018,31/03/2018,FACEBK 8SRUUF2MR2,fb.me/ads,IRL,2,REDACTED,556*********8256,7311,ADVERTISING SERVICES,62.59,Pound Sterling (826),1.000000000,62.59,Debit,15265678090000100383837,02/04/2018,GLOUCESTER CC
Gloucester City Council,23UE,Guildhall Events,GH002,Advertising & Publicity,3404,02/04/2018,31/03/2018,FACEBK *MVT48F6EX2,fb.me/ads,IRL,UNKNOWN,REDACTED,556*********8256,7311,ADVERTISING SERVICES,15,Pound Sterling (826),1.000000000,15,Debit,55204728090200470213910,02/04/2018,GLOUCESTER CC
Gloucester City Council,23UE,Guildhall Events,GH002,Advertising & Publicity,3404,02/04/2018,31/03/2018,FACEBK S37G5FW5M2,fb.me/ads,IRL,2,REDACTED,556*********8256,7311,ADVERTISING SERVICES,94,Pound Sterling (826),1.000000000,94,Debit,15265678090000273421539,02/04/2018,GLOUCESTER CC
Gloucester City Council,23UE,Elections,DS004,Professional Advice/Consultants fees,3952,06/03/2018,05/03/2018,WWW.ICO.GOV.UK,03031231113 W,,SK95AF,REDACTED,556*********3063,9399,GOVERNMENT SERVICES NOT ELSEWHERE CLASSIFIED,500,Pound Sterling (826),1.000000000,500,Debit,85481478065023781055422,02/04/2018,GLOUCESTER CC
Gloucester City Council,23UE,Head of Regeneration & Economic Development,MT005,Professional Advice/Consultants fees,3952,09/03/2018,08/03/2018,EB *CHAMBER NETWORKING,801-413-7200,IRL,DUBLIN 8,REDACTED,556*********3063,7399,BUSINESS SERVICES NOT ELSEWHERE CLASSIFIED,18,Pound Sterling (826),1.000000000,18,Debit,15276328068000171231789,02/04/2018,GLOUCESTER CC
Gloucester City Council,23UE,Financial Services,FS004,Public Transport - Staff,2402,12/03/2018,09/03/2018,GWR WEBSALES,SWINDON,,SN1 1HL,REDACTED,556*********3063,4112,PASSENGER RAILWAYS,165.6,Pound Sterling (826),1.000000000,165.6,Debit,55504438070160396929154,02/04/2018,GLOUCESTER CC
Gloucester City Council,23UE,Financial Services,FS004,Public Transport - Staff,2402,14/03/2018,13/03/2018,GWR WEBSALES,SWINDON,,SN1 1HL,REDACTED,556*********3063,4112,PASSENGER RAILWAYS,9.7,Pound Sterling (826),1.000000000,9.7,Debit,55504438072160314109515,02/04/2018,GLOUCESTER CC
Gloucester City Council,23UE,Off Street Car Parks,PA001,Building Repairs and Maintenance,1001,23/03/2018,21/03/2018,PEACOCK SALT,AYR NTH,GBR,KA8 8AE,REDACTED,556*********3063,5169,CHEMICALS AND ALLIED PRODUCTS NOT ELSEWH,89.28,Pound Sterling (826),1.000000000,89.28,Debit,65425158082070331849679,02/04/2018,GLOUCESTER CC
Gloucester City Council,23UE,Business Transformation,BI006,ICT New Hardware,3523,28/03/2018,27/03/2018,Amazon UK Marketplace,800-279-6620,LUX,L2338,REDACTED,556*********3063,5942,BOOK STORES,124.15,Pound Sterling (826),1.000000000,124.15,Debit,55204728086200620504974,02/04/2018,GLOUCESTER CC
